[Event "3rd Gujarat GM Open 2022"]
[Site "Ahmedabad"]
[Date "2022.04.03"]
[Round "5.7"]
[White "De Silva, L M S T"]
[Black "Fawzy, Adham"]
[Result "1/2-1/2"]
[ECO "B30"]
[WhiteElo "2220"]
[BlackElo "2476"]
[Annotator "ChessBase"]
[PlyCount "78"]
[EventDate "2022.03.31"]
[EventType "swiss"]
[EventCountry "IND"]
[SourceTitle "playchess.com"]
[Source "ChessBase"]
[SourceQuality "1"]
[TimeControl "5400+30"]

1. e4 {[%emt 0:00:04]} c5 {[%emt 0:02:28]} 2. Nf3 {[%emt 0:00:07]} Nc6 {[%emt 0:00:06]} 3. Bb5 {[%emt 0:00:08]} e6 {[%emt 0:00:06]} 4. O-O {[%emt 0:00:20]} Nge7 {[%emt 0:00:03]} 5. Re1 {[%emt 0:00:08]} b6 {[%emt 0:00:06]} 6. d4 {[%emt 0:02:36]} cxd4 {[%emt 0:02:04]} 7. Nxd4 {[%emt 0:01:25]} Nxd4 {[%emt 0:00:24]} 8. Qxd4 {[%emt 0:00:07]} Bb7 {[%emt 0:00:07]} 9. Nc3 {[%emt 0:05:40]} a6 {[%emt 0:00:06]} 10. Ba4 {[%emt 0:02:36]} b5 {[%emt 0:01:49]} 11. Bb3 {[%emt 0:00:51]} Nc6 {[%emt 0:01:40]} 12. Qd1 {[%emt 0:01:08]} Bc5 {[%emt 0:07:40]} 13. Be3 {[%emt 0:01:31]} d6 {[%emt 0:01:38]} 14. Qh5 {[%emt 0:13:26]} O-O {[%emt 0:07:05]} 15. Rad1 {[%emt 0:06:26]} Qf6 {[%emt 0:10:35]} 16. Bxc5 {[%emt 0:18:34]} g6 {[%emt 0:02:16]} 17. Bd4 {[%emt 0:12:01]} Nxd4 {[%emt 0:01:30]} 18. Qh3 {[%emt 0:03:00]} Rac8 {[%emt 0:10:52]} 19. Qd3 {[%emt 0:01:15]} Nxb3 {[%emt 0:00:21]} 20. cxb3 {[%emt 0:03:06]} Rfd8 {[%emt 0:00:16]} 21. Qd4 {[%emt 0:00:42]} Qe5 {[%emt 0:06:38]} 22. h3 {[%emt 0:01:56]} Qc5 {[%emt 0:01:31]} 23. a3 {[%emt 0:01:25]} Qxd4 {[%emt 0:03:43]} 24. Rxd4 {[%emt 0:00:10]} Kf8 {[%emt 0:00:01]} 25. Red1 {[%emt 0:00:35]} Ke7 {[%emt 0:00:02]} 26. f3 {[%emt 0:00:35]} g5 {[%emt 0:01:17]} 27. Kf2 {[%emt 0:01:58]} Rc5 {[%emt 0:00:44]} 28. g4 {[%emt 0:02:06]} Bc6 {[%emt 0:06:39]} 29. b4 {[%emt 0:02:19]} Re5 {[%emt 0:00:48]} 30. Ne2 {[%emt 0:00:34]} f5 {[%emt 0:07:19]} 31. exf5 {[%emt 0:00:30]} exf5 {[%emt 0:03:26]} 32. Ng3 {[%emt 0:00:08]} fxg4 {[%emt 0:00:07]} 33. hxg4 {[%emt 0:00:10]} Rf8 {[%emt 0:00:08]} 34. Nf5+ {[%emt 0:00:54]} Rfxf5 {[%emt 0:00:08]} 35. gxf5 {[%emt 0:00:07]} Rxf5 {[%emt 0:00:18]} 36. Rxd6 {[%emt 0:05:42]} Bxf3 {[%emt 0:00:37]} 37. Rd7+ {[%emt 0:00:27]} Ke6 {[%emt 0:00:01]} 38. R1d6+ {[%emt 0:00:15]} Ke5 {[%emt 0:00:01]} 39. Ke3 {[%emt 0:14:58]} Be4 {[%emt 0:03:18]} 1/2-1/2

[Event "3rd Gujarat GM Open 2022"]
[Site "Ahmedabad"]
[Date "2022.04.03"]
[Round "5.13"]
[White "Deodhar, Vrushali Umesh"]
[Black "Sidhant, Mohapatra"]
[Result "1/2-1/2"]
[ECO "A22"]
[WhiteElo "1974"]
[BlackElo "2359"]
[Annotator "ChessBase"]
[PlyCount "85"]
[EventDate "2022.03.31"]
[EventType "swiss"]
[EventCountry "IND"]
[SourceTitle "playchess.com"]
[Source "ChessBase"]
[SourceQuality "1"]
[TimeControl "5400+30"]

1. c4 {[%emt 0:00:04]} e5 {[%emt 0:00:27]} 2. Nc3 {[%emt 0:00:13]} Nf6 {[%emt 0:00:08]} 3. g3 {[%emt 0:00:06]} Bb4 {[%emt 0:00:23]} 4. Nd5 {[%emt 0:03:14]} Nxd5 {[%emt 0:00:08]} 5. cxd5 {[%emt 0:00:04]} O-O {[%emt 0:00:12]} 6. Bg2 {[%emt 0:00:08]} d6 {[%emt 0:00:16]} 7. Nf3 {[%emt 0:00:37]} Ba5 {[%emt 0:16:50]} 8. O-O {[%emt 0:00:27]} c6 {[%emt 0:04:28]} 9. dxc6 {[%emt 0:02:02]} Nxc6 {[%emt 0:00:26]} 10. d3 {[%emt 0:00:44]} Bb6 {[%emt 0:01:54]} 11. b3 {[%emt 0:11:33]} h6 {[%emt 0:07:45]} 12. Bb2 {[%emt 0:01:02]} a5 {[%emt 0:02:01]} 13. Rc1 {[%emt 0:08:43]} Re8 {[%emt 0:04:17]} 14. Nd2 {[%emt 0:00:50]} d5 {[%emt 0:00:31]} 15. e4 {[%emt 0:00:54]} Be6 {[%emt 0:02:33]} 16. Nb1 {[%emt 0:03:45]} dxe4 {[%emt 0:15:33]} 17. dxe4 {[%emt 0:00:45]} Nb4 {[%emt 0:00:22]} 18. Nc3 {[%emt 0:24:26]} Bd4 {[%emt 0:11:12]} 19. Ba1 {[%emt 0:11:21]} Bxc3 {[%emt 0:02:15]} 20. Rxc3 {[%emt 0:00:36]} Qxd1 {[%emt 0:00:53]} 21. Rxd1 {[%emt 0:00:02]} Nxa2 {[%emt 0:00:10]} 22. Rc7 {[%emt 0:03:29]} Bxb3 {[%emt 0:07:44]} 23. Rb1 {[%emt 0:00:17]} a4 {[%emt 0:00:10]} 24. Rxb7 {[%emt 0:00:12]} Rac8 {[%emt 0:00:03]} 25. Bf1 {[%emt 0:05:52]} Nc3 {[%emt 0:06:12]} 26. Bxc3 {[%emt 0:05:19]} Rxc3 {[%emt 0:00:02]} 27. Ra7 {[%emt 0:00:01]} Rec8 {[%emt 0:01:24]} 28. Kg2 {[%emt 0:02:18]} Rc1 {[%emt 0:00:35]} 29. Rxc1 {[%emt 0:01:47]} Rxc1 {[%emt 0:00:02]} 30. Bb5 {[%emt 0:00:14]} Ra1 {[%emt 0:05:17]} 31. Bc6 {[%emt 0:01:18]} g5 {[%emt 0:01:04]} 32. Bd5 {[%emt 0:07:20]} Bxd5 {[%emt 0:04:56]} 33. exd5 {[%emt 0:00:01]} Kg7 {[%emt 0:00:01]} 34. Kf3 {[%emt 0:01:10]} a3 {[%emt 0:00:56]} 35. Ke4 {[%emt 0:03:51]} a2 {[%emt 0:01:41]} 36. Kf5 {[%emt 0:00:06]} e4 {[%emt 0:00:22]} 37. Ke5 {[%emt 0:01:20]} Kf8 {[%emt 0:03:00]} 38. Ra8+ {[%emt 0:01:20]} Ke7 {[%emt 0:00:28]} 39. d6+ {[%emt 0:00:20]} Kd7 {[%emt 0:00:05]} 40. Ra7+ {[%emt 0:00:01]} Kd8 {[%emt 0:00:10]} 41. Ra8+ {[%emt 0:00:04]} Kd7 {[%emt 0:00:05]} 42. Ra7+ {[%emt 0:00:02]} Kd8 {[%emt 0:02:17]} 43. Kxe4 {[%emt 0:01:41]} 1/2-1/2

[Event "3rd Gujarat GM Open 2022"]
[Site "Ahmedabad"]
[Date "2022.04.03"]
[Round "5.14"]
[White "Ritviz, Parab"]
[Black "Vrashank Chouhan"]
[Result "1-0"]
[ECO "A08"]
[WhiteElo "2349"]
[BlackElo "1790"]
[Annotator "ChessBase"]
[PlyCount "84"]
[EventDate "2022.03.31"]
[EventType "swiss"]
[EventCountry "IND"]
[SourceTitle "playchess.com"]
[Source "ChessBase"]
[SourceQuality "1"]
[TimeControl "5400+30"]

1. g3 {[%emt 1:31:00]} d5 {[%emt 1:31:00]} 2. Nf3 {[%emt 0:00:30]} c5 {[%emt 0:00:30]} 3. Bg2 {[%emt 0:00:30]} Nc6 {[%emt 0:00:30]} 4. d3 {[%emt 0:00:30]} e5 {[%emt 0:00:30]} 5. O-O {[%emt 0:00:30]} Be7 {[%emt 0:00:30]} 6. e4 {[%emt 0:00:30]} d4 {[%emt 0:00:30]} 7. Nbd2 {[%emt 0:00:30]} g5 {[%emt 0:00:30]} 8. Nc4 {[%emt 0:00:30]} f6 {[%emt 0:00:30]} 9. a4 {[%emt 0:00:30]} Be6 {[%emt 0:00:30]} 10. c3 {[%emt 0:00:30]} h5 {[%emt 0:00:30]} 11. cxd4 {[%emt 0:00:30]} Nxd4 {[%emt 0:00:30]} 12. Nxd4 {[%emt 0:00:30]} Qxd4 {[%emt 0:00:30]} 13. Ne3 {[%emt 0:00:30]} Qd7 {[%emt 0:00:30]} 14. Nd5 {[%emt 0:00:30]} h4 {[%emt 0:00:30]} 15. Qb3 {[%emt 0:00:30]} Bd6 {[%emt 0:00:30]} 16. Qb5 {[%emt 0:00:30]} Rc8 {[%emt 0:00:30]} 17. Qxd7+ {[%emt 0:00:30]} Kxd7 {[%emt 0:00:30]} 18. Be3 {[%emt 0:00:30]} Bxd5 {[%emt 0:00:30]} 19. exd5 {[%emt 0:00:30]} Ne7 {[%emt 0:00:30]} 20. a5 {[%emt 0:00:30]} h3 {[%emt 0:00:30]} 21. Bf3 {[%emt 0:00:30]} Rhg8 {[%emt 0:00:30]} 22. Ra4 {[%emt 0:00:30]} f5 {[%emt 0:00:30]} 23. g4 {[%emt 0:00:30]} f4 {[%emt 0:00:30]} 24. Bd2 {[%emt 0:00:30]} b5 {[%emt 0:00:30]} 25. axb6 {[%emt 0:00:30]} axb6 {[%emt 0:00:30]} 26. Ra7+ {[%emt 0:00:30]} Rc7 {[%emt 0:00:30]} 27. Ra6 {[%emt 0:00:30]} b5 {[%emt 0:00:30]} 28. Rfa1 {[%emt 0:00:30]} Nc8 {[%emt 0:00:30]} 29. Be4 {[%emt 0:00:30]} Rf8 {[%emt 0:00:30]} 30. R1a5 {[%emt 0:00:30]} b4 {[%emt 0:00:30]} 31. b3 {[%emt 0:00:30]} Rb7 {[%emt 0:00:30]} 32. Bc1 {[%emt 0:00:30]} Nb6 {[%emt 0:00:30]} 33. Bb2 {[%emt 0:00:30]} Kc7 {[%emt 0:00:30]} 34. Kf1 {[%emt 0:00:30]} Re8 {[%emt 0:00:30]} 35. Ke2 {[%emt 0:00:30]} Rf8 {[%emt 0:00:30]} 36. Kf3 {[%emt 0:00:30]} Re8 {[%emt 0:00:30]} 37. Bg6 {[%emt 0:00:30]} Rd8 {[%emt 0:00:30]} 38. Bf7 {[%emt 0:00:30]} Kd7 {[%emt 0:00:30]} 39. Ke4 {[%emt 0:00:30]} Ke7 {[%emt 0:00:30]} 40. Be6 {[%emt 0:00:30]} Kf6 {[%emt 0:00:30]} 41. Rb5 {[%emt 0:00:30]} Rdb8 {[%emt 0:00:30]} 42. Ba1 {[%emt 0:00:30]} Ra8 {[%emt 0:00:30]} 1-0

[Event "3rd Gujarat GM Open 2022"]
[Site "Ahmedabad"]
[Date "2022.04.03"]
[Round "5.17"]
[White "Bhattacharyya Soham"]
[Black "Venkatesh, M.R."]
[Result "0-1"]
[ECO "E05"]
[WhiteElo "2004"]
[BlackElo "2493"]
[Annotator "ChessBase"]
[PlyCount "60"]
[EventDate "2022.03.31"]
[EventType "swiss"]
[EventCountry "IND"]
[SourceTitle "playchess.com"]
[Source "ChessBase"]
[SourceQuality "1"]
[TimeControl "5400+30"]

1. d4 {[%emt 0:00:15]} Nf6 {[%emt 0:01:23]} 2. c4 {[%emt 0:00:58]} e6 {[%emt 0:01:30]} 3. g3 {[%emt 0:00:48]} d5 {[%emt 0:04:12]} 4. Nf3 {[%emt 0:01:21]} Be7 {[%emt 0:00:40]} 5. Bg2 {[%emt 0:00:10]} O-O {[%emt 0:00:06]} 6. O-O {[%emt 0:00:53]} dxc4 {[%emt 0:00:31]} 7. Qc2 {[%emt 0:00:28]} a6 {[%emt 0:00:05]} 8. Qxc4 {[%emt 0:00:49]} b5 {[%emt 0:00:11]} 9. Qc2 {[%emt 0:00:05]} Bb7 {[%emt 0:00:03]} 10. Bd2 {[%emt 0:00:30]} Be4 {[%emt 0:16:15]} 11. Qc1 {[%emt 0:03:18]} Nbd7 {[%emt 0:00:31]} 12. Ba5 {[%emt 0:10:07]} Rc8 {[%emt 0:16:22]} 13. Nbd2 {[%emt 0:04:21]} Ba8 {[%emt 0:04:46]} 14. Qc2 {[%emt 0:09:17]} Nb8 {[%emt 0:04:28]} 15. a3 {[%emt 0:02:23]} Nc6 {[%emt 0:07:53]} 16. Bc3 {[%emt 0:00:08]} a5 {[%emt 0:17:20]} 17. Nb3 {[%emt 0:24:34]} a4 {[%emt 0:01:59]} 18. Nbd2 {[%emt 0:08:21]} Nb8 {[%emt 0:06:15]} 19. b4 {[%emt 0:04:37]} axb3 {[%emt 0:00:20]} 20. Nxb3 {[%emt 0:00:05]} Na6 {[%emt 0:05:36]} 21. Rfd1 {[%emt 0:05:14]} Qe8 {[%emt 0:04:33]} 22. Qb2 {[%emt 0:01:28]} Ne4 {[%emt 0:01:03]} 23. Ne5 {[%emt 0:10:28]} Nxc3 {[%emt 0:02:24]} 24. Qxc3 {[%emt 0:00:07]} Bxg2 {[%emt 0:00:04]} 25. Kxg2 {[%emt 0:00:07]} c5 {[%emt 0:00:05]} 26. dxc5 {[%emt 0:02:02]} Nxc5 {[%emt 0:00:02]} 27. Nxc5 {[%emt 0:02:07]} Rxc5 {[%emt 0:00:03]} 28. Qe3 {[%emt 0:00:07]} Qa8+ {[%emt 0:00:32]} 29. Nf3 {[%emt 0:00:23]} Rfc8 {[%emt 0:00:54]} 30. Rd3 {[%emt 0:01:31]} Bg5 {[%emt 0:00:55]} 0-1

[Event "3rd Gujarat GM Open 2022"]
[Site "Ahmedabad"]
[Date "2022.04.03"]
[Round "6.1"]
[White "Neelotpal, Das"]
[Black "Nitin, S.."]
[Result "1/2-1/2"]
[ECO "A49"]
[WhiteElo "2409"]
[BlackElo "2427"]
[Annotator "NA RC"]
[PlyCount "60"]
[EventDate "2022.03.31"]
[EventType "swiss"]
[EventCountry "IND"]
[SourceTitle "playchess.com"]
[Source "ChessBase"]
[SourceQuality "1"]
[TimeControl "5400+30"]

1. d4 {[%emt 0:00:43]} Nf6 {[%emt 0:00:34]} 2. Nf3 {[%emt 0:00:46]} g6 {[%emt 0:00:24]} 3. b3 {[%emt 0:00:07]} Bg7 {[%emt 0:00:07]} 4. Bb2 {[%emt 0:00:04]} O-O {[%emt 0:00:10]} 5. g3 {[%emt 0:00:19]} d6 {[%emt 0:00:06]} 6. Bg2 {[%emt 0:00:04]} a5 {[%emt 0:00:03]} 7. c4 {[%emt 0:00:29]} a4 {[%emt 0:00:10]} 8. O-O {[%emt 0:00:23]} c6 {[%emt 0:00:20]} 9. Nbd2 {[%emt 0:01:22]} axb3 {[%emt 0:02:30]} 10. axb3 {[%emt 0:01:06]} Rxa1 {[%emt 0:00:05]} 11. Qxa1 {[%emt 0:00:55]} Na6 {[%emt 0:00:07]} 12. e4 {[%emt 0:03:25]} Bg4 {[%emt 0:00:09]} 13. d5 {[%emt 0:03:40]} Bxf3 {[%emt 0:10:12]} 14. Nxf3 {[%emt 0:08:12]} Nc5 {[%emt 0:01:00]} 15. Nd2 {[%emt 0:02:38]} Qb6 {[%emt 0:09:02]} 16. Bd4 {[%emt 0:17:06]} Nh5 {[%emt 0:06:32]} 17. Bxg7 {[%emt 0:03:16]} Nxg7 {[%emt 0:00:16]} 18. Qc3 {[%emt 0:09:23]} Ra8 {[%emt 0:09:40]} 19. b4 {[%emt 0:02:02]} Na4 {[%emt 0:15:27]} 20. Qa3 {[%emt 0:01:08]} c5 {[%emt 0:09:52]} 21. Rb1 {[%emt 0:05:44]} Qd8 {[%emt 0:01:23]} 22. bxc5 {[%emt 0:05:01]} Nxc5 {[%emt 0:01:19]} 23. Qc3 {[%emt 0:00:11]} e5 $11 {[%emt 0:02:28]} 24. dxe6 {[%emt 0:01:34]} Ngxe6 {[%emt 0:01:56]} 25. Nf1 {[%emt 0:02:07]} Qa5 {[%emt 0:00:18]} 26. Qxa5 {[%emt 0:09:13]} Rxa5 {[%emt 0:00:14]} 27. Ne3 {[%emt 0:00:23]} Nc7 {[%emt 0:03:27]} 28. h4 {[%emt 0:01:07]} h5 {[%emt 0:04:15]} 29. Rd1 {[%emt 0:03:31]} Ra6 {[%emt 0:00:09]} 30. Bf3 {[%emt 0:00:44]} Kf8 {[%emt 0:00:10]} 1/2-1/2

[Event "3rd Gujarat GM Open 2022"]
[Site "Ahmedabad"]
[Date "2022.04.03"]
[Round "6.3"]
[White "Savchenko, Boris"]
[Black "Hesham, Abdelrahman"]
[Result "0-1"]
[ECO "E20"]
[WhiteElo "2535"]
[BlackElo "2425"]
[Annotator "RC"]
[PlyCount "104"]
[EventDate "2022.03.31"]
[EventType "swiss"]
[EventCountry "IND"]
[SourceTitle "playchess.com"]
[Source "ChessBase"]
[SourceQuality "1"]
[TimeControl "5400+30"]

1. d4 {[%emt 0:06:25]} Nf6 {[%emt 0:01:02]} 2. Nf3 {[%emt 0:00:31]} e6 {[%emt 0:00:16]} 3. c4 {[%emt 0:01:17]} d5 {[%emt 0:00:06]} 4. Nc3 {[%emt 0:02:21]} Bb4 {[%emt 0:00:06]} 5. g3 {[%emt 0:02:05]} c5 {[%emt 0:05:31]} 6. cxd5 {[%emt 0:20:59]} Qxd5 {[%emt 1:26:29]} 7. Bg2 {[%emt 0:16:56]} O-O {[%emt 0:00:00]} 8. O-O {[%emt 0:00:50]} Qh5 {[%emt 0:00:00]} 9. Nb5 {[%emt 0:07:05]} a6 {[%emt 0:00:00]} 10. Nd6 {[%emt 0:00:43]} cxd4 {[%emt 0:00:00]} 11. Nxc8 {[%emt 0:00:35]} Rxc8 {[%emt 0:00:00]} 12. Nxd4 {[%emt 0:08:33]} Nc6 {[%emt 0:00:00]} 13. Bf3 {[%emt 0:03:35]} Qh3 {[%emt 0:00:00]} 14. Nxc6 {[%emt 0:01:01]} bxc6 {[%emt 0:00:00]} 15. Qa4 {[%emt 0:05:23]} a5 {[%emt 0:00:00]} 16. a3 {[%emt 0:02:46]} Bd6 {[%emt 0:00:00]} 17. Bd2 {[%emt 0:02:13]} e5 {[%emt 0:00:00]} 18. Bc3 {[%emt 0:00:49]} e4 {[%emt 0:00:00]} 19. Bg2 {[%emt 0:00:09]} Qe6 {[%emt 0:00:00]} 20. Rac1 {[%emt 0:04:11]} Be5 {[%emt 0:00:00]} 21. b3 {[%emt 0:01:57]} Bxc3 {[%emt 0:00:00]} 22. Rxc3 {[%emt 0:00:06]} Nd5 {[%emt 0:00:00]} 23. Rc5 {[%emt 0:00:21]} f5 {[%emt 0:00:00]} 24. Rfc1 {[%emt 0:01:03]} Nb6 {[%emt 0:00:00]} 25. Qd4 {[%emt 0:00:08]} Nd7 {[%emt 0:00:00]} 26. R5c4 {[%emt 0:06:30]} Rab8 {[%emt 0:00:00]} 27. g4 {[%emt 0:02:55]} g6 {[%emt 0:00:00]} 28. R1c3 {[%emt 0:00:14]} Ne5 {[%emt 0:00:00]} 29. gxf5 {[%emt 0:00:49]} gxf5 {[%emt 0:00:00]} 30. Rg3+ {[%emt 0:01:43]} Ng6 {[%emt 0:00:00]} 31. h4 {[%emt 0:00:55]} Rd8 {[%emt 0:00:00]} 32. Qc3 {[%emt 0:00:36]} Rd1+ {[%emt 0:00:00]} 33. Kh2 {[%emt 0:00:41]} Qe7 {[%emt 0:05:18]} 34. Rxc6 {[%emt 0:00:14]} Qxh4+ {[%emt 0:01:17]} 35. Bh3 {[%emt 0:00:05]} Rd7 {[%emt 0:05:47]} 36. Kg2 {[%emt 0:00:36]} Rf8 {[%emt 0:00:37]} 37. Qe5 {[%emt 0:00:56]} Rg7 {[%emt 0:00:13]} 38. Qd5+ {[%emt 0:00:29]} Kh8 {[%emt 0:00:03]} 39. Qc5 {[%emt 0:00:38]} Rfg8 {[%emt 0:01:40]} 40. Qd4 {[%emt 0:00:30]} f4 {[%emt 0:00:57]} 41. Rg4 {[%emt 0:00:17]} f3+ {[%emt 0:00:01]} 42. Kh2 {[%emt 0:00:21]} Qe7 {[%emt 0:00:55]} 43. exf3 {[%emt 0:00:53]} Ne5 {[%emt 0:00:26]} 44. Rc3 {[%emt 0:00:32]} Nxg4+ {[%emt 0:00:42]} 45. fxg4 {[%emt 0:00:08]} Rd8 {[%emt 0:00:06]} 46. Qe3 {[%emt 0:00:27]} Rf7 {[%emt 0:00:01]} 47. Qe1 {[%emt 0:00:56]} Qe5+ {[%emt 0:00:23]} 48. Kg1 {[%emt 0:00:23]} Rfd7 {[%emt 0:01:59]} 49. Rc1 {[%emt 0:00:27]} Rd3 {[%emt 0:00:24]} 50. Bg2 {[%emt 0:00:25]} Rg8 {[%emt 0:00:39]} 51. b4 {[%emt 0:00:43]} a4 {[%emt 0:00:21]} 52. g5 {[%emt 0:00:33]} Qxg5 {[%emt 0:00:10]} 0-1

[Event "3rd Gujarat GM Open 2022"]
[Site "Ahmedabad"]
[Date "2022.04.03"]
[Round "6.4"]
[White "Neelash Saha"]
[Black "Srihari L R"]
[Result "0-1"]
[ECO "B12"]
[WhiteElo "2445"]
[BlackElo "2400"]
[Annotator "NA RC"]
[PlyCount "132"]
[EventDate "2022.03.31"]
[EventType "swiss"]
[EventCountry "IND"]
[SourceTitle "playchess.com"]
[Source "ChessBase"]
[SourceQuality "1"]
[TimeControl "5400+30"]

1. e4 {[%emt 1:31:00]} c6 {[%emt 1:31:00]} 2. d4 {[%emt 0:00:30]} d5 {[%emt 0:00:30]} 3. e5 {[%emt 0:00:30]} Bf5 {[%emt 0:00:30]} 4. Nf3 {[%emt 0:00:30]} e6 {[%emt 0:00:30]} 5. Be2 {[%emt 0:00:30]} c5 {[%emt 0:00:30]} 6. Be3 {[%emt 0:00:30]} cxd4 {[%emt 0:00:30]} 7. Nxd4 {[%emt 0:00:30]} Ne7 {[%emt 0:00:30]} 8. O-O {[%emt 0:00:30]} Nbc6 {[%emt 0:00:30]} 9. Bb5 {[%emt 0:00:30]} Qc7 {[%emt 0:00:30]} 10. c4 {[%emt 0:00:30]} dxc4 {[%emt 0:00:30]} 11. Nd2 {[%emt 0:00:30]} Bd3 {[%emt 0:00:30]} 12. Nxc4 {[%emt 0:00:30]} Bxc4 {[%emt 0:00:30]} 13. Bxc4 {[%emt 0:00:30]} Nxd4 {[%emt 0:00:30]} 14. Qxd4 {[%emt 0:00:30]} Nc6 {[%emt 0:00:30]} 15. Bb5 {[%emt 0:00:30]} Be7 {[%emt 0:00:30]} 16. Rfd1 {[%emt 0:00:30]} O-O {[%emt 0:00:30]} 17. Qd7 {[%emt 0:00:30]} Rfc8 {[%emt 0:00:30]} 18. Rac1 {[%emt 0:00:30]} Bf8 {[%emt 0:00:30]} 19. Bxc6 {[%emt 0:00:30]} bxc6 {[%emt 0:00:30]} 20. Qxc7 {[%emt 0:00:30]} Rxc7 {[%emt 0:00:30]} 21. Rc4 {[%emt 0:00:30]} a5 {[%emt 0:00:30]} 22. b3 {[%emt 0:00:30]} h6 {[%emt 0:00:30]} 23. f4 {[%emt 0:00:30]} Be7 {[%emt 0:00:30]} 24. Kf1 {[%emt 0:00:30]} Ra6 {[%emt 0:00:30]} 25. Ke2 {[%emt 0:00:30]} Kf8 {[%emt 0:00:30]} 26. Kf3 {[%emt 0:00:30]} Ke8 {[%emt 0:00:30]} 27. g4 {[%emt 0:00:30]} Rb7 {[%emt 0:00:30]} 28. Rdc1 {[%emt 0:00:30]} Kd7 {[%emt 0:00:30]} 29. R1c2 {[%emt 0:00:30]} Rb5 {[%emt 0:00:30]} 30. Ke4 {[%emt 0:00:30]} a4 {[%emt 0:00:30]} 31. Rd2+ {[%emt 0:00:30]} Kc7 {[%emt 0:00:30]} 32. bxa4 {[%emt 0:00:30]} Rb4 {[%emt 0:00:30]} 33. Rxb4 {[%emt 0:00:30]} Bxb4 {[%emt 0:00:30]} 34. Rd4 {[%emt 0:00:30]} c5 {[%emt 0:00:30]} 35. Rc4 {[%emt 0:00:30]} Kc6 {[%emt 0:00:30]} 36. f5 {[%emt 0:00:30]} g6 {[%emt 0:00:30]} 37. fxe6 {[%emt 0:00:30]} fxe6 38. Bc1 {[%emt 0:00:30]} g5 {[%emt 0:01:00]} 39. a3 {[%emt 0:00:30]} Ba5 {[%emt 0:00:30]} 40. Be3 {[%emt 0:00:30]} Bb6 {[%emt 0:00:30]} 41. Bd2 {[%emt 0:00:30]} Ba5 {[%emt 0:00:30]} 42. Be3 {[%emt 0:00:30]} Bb6 {[%emt 0:00:30]} 43. Bf2 {[%emt 0:00:30]} Ra8 {[%emt 0:00:30]} 44. Be1 {[%emt 0:00:30]} Ba5 {[%emt 0:00:30]} 45. Bg3 {[%emt 0:00:30]} Bc7 {[%emt 0:00:30]} 46. Bf2 {[%emt 0:00:30]} Bb6 {[%emt 0:00:30]} 47. h4 {[%emt 0:00:30]} gxh4 {[%emt 0:00:30]} 48. Bxh4 {[%emt 0:00:30]} Rg8 {[%emt 0:00:30]} 49. Kd3 {[%emt 0:00:30]} Kd5 {[%emt 0:00:30]} 50. Bf6 {[%emt 0:00:30]} Rb8 {[%emt 0:00:30]} 51. Be7 {[%emt 0:00:30]} Rb7 {[%emt 0:00:30]} 52. Bd6 {[%emt 0:00:30]} Rf7 {[%emt 0:00:30]} 53. Rc3 {[%emt 0:00:30]} c4+ {[%emt 0:00:30]} 54. Ke2 {[%emt 0:00:30]} Rf2+ {[%emt 0:00:30]} 55. Kd1 {[%emt 0:00:30]} Bd4 {[%emt 0:00:30]} 56. Rc2 {[%emt 0:00:30]} Rf1+ {[%emt 0:00:30]} 57. Ke2 {[%emt 0:00:30]} Rf7 {[%emt 0:00:30]} 58. Bb4 {[%emt 0:00:30]} Bxe5 {[%emt 0:00:30]} 59. Bd2 {[%emt 0:00:30]} Rf6 {[%emt 0:00:30]} 60. a5 {[%emt 0:00:30]} Bd4 {[%emt 0:00:30]} 61. Rc1 {[%emt 0:00:30]} Rf2+ {[%emt 0:00:30]} 62. Kd1 {[%emt 0:00:30]} Rh2 {[%emt 0:00:30]} 63. a6 {[%emt 0:00:30]} e5 {[%emt 0:00:30]} 64. Bc3 {[%emt 0:00:30]} Ra2 {[%emt 0:00:30]} 65. Ra1 {[%emt 0:00:30]} Rxa1+ {[%emt 0:00:30]} 66. Bxa1 {[%emt 0:00:30]} Kc6 {[%emt 0:00:30]} 0-1

[Event "3rd Gujarat GM Open 2022"]
[Site "Ahmedabad"]
[Date "2022.04.03"]
[Round "6.5"]
[White "Nigmatov, Ortik"]
[Black "Del Rey, Diego"]
[Result "1-0"]
[ECO "C43"]
[WhiteElo "2445"]
[BlackElo "2370"]
[Annotator "NA RC"]
[PlyCount "63"]
[EventDate "2022.03.31"]
[EventType "swiss"]
[EventCountry "IND"]
[SourceTitle "playchess.com"]
[Source "ChessBase"]
[SourceQuality "1"]
[TimeControl "5400+30"]

1. e4 {[%emt 0:03:09]} e5 {[%emt 0:00:06]} 2. Nf3 {[%emt 0:00:45]} Nf6 {[%emt 0:00:11]} 3. d4 {[%emt 0:01:43]} Nxe4 {[%emt 0:00:07]} 4. Nxe5 {[%emt 0:00:08]} d5 {[%emt 0:01:11]} 5. Bd3 {[%emt 0:00:20]} Nd7 {[%emt 0:00:09]} 6. Nc3 {[%emt 0:00:07]} Nxc3 {[%emt 0:05:00]} 7. bxc3 {[%emt 0:00:05]} Nxe5 {[%emt 0:01:56]} 8. dxe5 {[%emt 0:00:06]} Bc5 {[%emt 0:03:40]} 9. O-O {[%emt 0:00:23]} Be6 {[%emt 0:01:28]} 10. Rb1 {[%emt 0:01:15]} Bb6 {[%emt 0:06:20]} 11. Kh1 {[%emt 0:04:22]} Qd7 {[%emt 0:05:04]} 12. f4 {[%emt 0:08:25]} Bg4 {[%emt 0:06:42]} 13. Qe1 {[%emt 0:04:10]} O-O-O {[%emt 0:02:01]} 14. a4 {[%emt 0:04:00]} f6 {[%emt 0:07:46]} 15. Be3 {[%emt 0:03:03]} fxe5 {[%emt 0:03:12]} 16. a5 {[%emt 0:07:18]} Bxe3 {[%emt 0:05:40]} 17. Qxe3 {[%emt 0:00:09]} d4 {[%emt 0:00:05]} 18. Qxe5 {[%emt 0:01:24]} Qd5 {[%emt 0:09:34]} 19. Qxg7 {[%emt 0:02:17]} h5 {[%emt 0:14:15]} 20. cxd4 {[%emt 0:07:41]} Qxd4 {[%emt 0:02:32]} 21. Qxd4 {[%emt 0:00:30]} Rxd4 {[%emt 0:00:01]} 22. f5 {[%emt 0:02:14]} h4 {[%emt 0:01:08]} 23. h3 {[%emt 0:00:04]} Bh5 {[%emt 0:00:07]} 24. f6 {[%emt 0:01:14]} Bf7 {[%emt 0:01:01]} 25. Rbe1 {[%emt 0:00:25]} Kd8 {[%emt 0:00:48]} 26. a6 {[%emt 0:01:09]} b6 {[%emt 0:01:16]} 27. Re7 {[%emt 0:00:48]} Rf8 {[%emt 0:00:09]} 28. Bb5 {[%emt 0:07:47]} Rd6 {[%emt 0:04:46]} 29. Rf3 {[%emt 0:17:16]} Bg6 {[%emt 0:03:36]} 30. Rc3 {[%emt 0:00:31]} c5 {[%emt 0:00:21]} 31. Rxa7 {[%emt 0:00:20]} Rfxf6 {[%emt 0:01:57]} 32. Re3 {[%emt 0:00:15]} 1-0